bitfinex-derivatives/quotes_BNBF0:USTF0_20251225
["timestamp","ask_amount","ask_price","bid_price","bid_amount"]
[1766654999436,1.19055581,840.83,840.16,0.89311426]
[1766654999639,1.19055581,840.82,840.16,0.89311426]
[1766654999939,1.19055581,840.81,840.16,0.89311426]
[1766655000240,0.20698639,840.86,840.16,0.89311426]
[1766655000436,1.19055581,840.85,840.16,0.89311426]
[1766655000635,1.19055581,840.84,840.16,0.89311426]
[1766655000938,1.19055581,840.83,840.16,0.89311426]
[1766655001138,1.19055581,840.82,840.16,0.89311426]
[1766655001338,1.19055581,840.81,840.16,0.89311426]
[1766655001638,0.20698639,840.86,840.16,0.89311426]
[1766655001838,1.19055552,840.85,840.16,0.89311426]
[1766655002041,1.19055552,840.84,840.16,0.89311426]
[1766655002342,1.19055552,840.83,840.16,0.89311426]
[1766655002641,1.19055552,840.82,840.16,0.89311426]
[1766655002842,1.19055552,840.81,840.16,0.89311426]
[1766655003138,0.20698639,840.86,840.16,0.89311426]
[1766655003341,1.19055552,840.85,840.16,0.89311426]
[1766655003538,1.19055552,840.84,840.16,0.89311426]
[1766655003837,1.19055552,840.83,840.16,0.89311426]
[1766655004138,1.19055552,840.82,840.16,0.89311426]
[1766655004336,1.19055552,840.81,840.16,0.89311426]
[1766655004541,0.20698639,840.86,840.16,0.89311426]
[1766655004841,1.19055552,840.85,840.16,0.89311426]
[1766655005038,1.19055552,840.84,840.16,0.89311426]
[1766655005242,1.19055552,840.83,840.16,0.89311426]
[1766655005443,1.19055552,840.82,840.16,0.89311426]
[1766655005639,1.19055552,840.81,840.16,0.89311426]
[1766655005843,1.19055552,840.8,840.16,0.89311426]
[1766655006142,0.20698639,840.86,840.16,0.89311426]
[1766655006343,1.19055527,840.85,840.16,0.89311426]
[1766655006543,1.19055527,840.84,840.16,0.89311426]
[1766655006742,1.19055527,840.83,840.16,0.89311426]
[1766655006940,1.19055527,840.82,840.16,0.89311426]
[1766655007144,1.19055527,840.81,840.16,0.89311426]
[1766655007344,1.19055527,840.8,840.16,0.89311426]
[1766655007544,0.20698639,840.86,840.16,0.89311426]
[1766655007745,1.19055514,840.85,840.16,0.89311426]
[1766655007942,1.19055514,840.84,840.16,0.89311426]
[1766655008141,1.19055514,840.83,840.16,0.89311426]
[1766655008445,1.19055514,840.82,840.16,0.89311426]
[1766655008642,0.20698639,840.86,840.16,0.89311426]
[1766655008643,1.19055514,840.81,840.16,0.89311426]
[1766655008846,1.19055514,840.8,840.16,0.89311426]
[1766655009046,0.20698639,840.86,840.16,0.89311426]
[1766655009243,1.19055399,840.85,840.16,0.89311426]
[1766655009446,1.19055399,840.84,840.16,0.89311426]
[1766655009643,1.19055399,840.83,840.16,0.89311426]
[1766655009848,1.19055399,840.82,840.16,0.89311426]
[1766655010045,1.19055399,840.81,840.16,0.89311426]
[1766655010243,1.19055399,840.8,840.16,0.89311426]
[1766655010445,0.20698639,840.86,840.16,0.89311426]
[1766655010645,1.19055437,840.85,840.16,0.89311426]
[1766655010846,1.19055437,840.84,840.16,0.89311426]
[1766655011045,1.19055437,840.83,840.16,0.89311426]
[1766655011247,1.19055437,840.82,840.17,0.89311426]
[1766655011449,1.19055437,840.81,840.17,0.89311426]
[1766655011748,1.19055437,840.8,840.17,0.89311426]
[1766655011947,0.20698639,840.86,840.17,0.89311426]
[1766655012146,1.19055437,840.85,840.17,0.89311426]
[1766655012350,1.19055437,840.84,840.17,0.89311426]
[1766655012546,1.19055437,840.83,840.17,0.89311426]
[1766655012750,1.19055437,840.82,840.17,0.89311426]
[1766655012949,1.19055437,840.81,840.17,0.89311426]
[1766655013252,1.19055437,840.8,840.17,0.89311426]
[1766655013552,1.19055437,840.79,840.17,0.89311426]
[1766655013750,0.20698639,840.86,840.17,0.89311426]
[1766655013949,1.19055463,840.85,840.17,0.89311426]
[1766655014147,1.19055463,840.84,840.17,0.89311426]
[1766655014349,1.19055463,840.83,840.17,0.89311426]
[1766655014548,1.19055463,840.82,840.17,0.89311426]
[1766655014851,1.19055463,840.81,840.17,0.89311426]
[1766655015051,1.19055463,840.8,840.17,0.89311426]
[1766655015252,1.19055463,840.79,840.17,0.89311426]
[1766655015453,0.20698639,840.86,840.17,0.89311426]
[1766655015754,1.19055425,840.85,840.17,0.89311426]
[1766655015953,1.19055425,840.84,840.17,0.89311426]
[1766655016253,1.19055425,840.83,840.18,0.89311426]
[1766655016549,1.19055425,840.82,840.18,0.89311426]
[1766655016753,1.19055425,840.81,840.18,0.89311426]
[1766655017054,1.19055425,840.8,840.18,0.89311426]
[1766655017350,1.19055425,840.79,840.18,0.89311426]
[1766655017653,1.19055425,840.78,840.18,0.89311426]
[1766655017854,0.20698639,840.86,840.18,0.89311426]
[1766655018053,1.19055527,840.85,840.18,0.89311426]
[1766655018253,1.19055527,840.84,840.18,0.89311426]
[1766655018452,1.19055527,840.83,840.18,0.89311426]
[1766655018651,1.19055527,840.82,840.18,0.89311426]
[1766655018856,1.19055527,840.81,840.18,0.89311426]
[1766655019156,1.19055527,840.8,840.19,0.89311426]
[1766655019356,1.19055527,840.79,840.19,0.89311426]
[1766655019555,1.19055527,840.78,840.19,0.89311426]
[1766655019855,0.20698639,840.86,840.19,0.89311426]
[1766655020053,1.19055578,840.85,840.19,0.89311426]
[1766655020256,1.19055578,840.84,840.19,0.89311426]
[1766655020457,1.19055578,840.83,840.19,0.89311426]
[1766655020650,1.19055578,840.82,840.19,0.89311426]
[1766655020851,1.19055578,840.81,840.19,0.89311426]
[1766655021154,1.19055578,840.8,840.19,0.89311426]
[1766655021355,1.19055578,840.79,840.2,0.89311426]
[1766655021556,1.19055578,840.78,840.2,0.89311426]
[1766655021756,1.19055578,840.77,840.2,0.89311426]
[1766655022056,1.19055578,840.76,840.2,0.89311426]
[1766655022352,0.20698639,840.86,840.2,0.89311426]
[1766655022556,1.19055578,840.85,840.2,0.89311426]
[1766655022756,1.19055578,840.84,840.2,0.89311426]
[1766655022957,1.19055578,840.83,840.2,0.89311426]
[1766655023155,1.19055578,840.82,840.2,0.89311426]
[1766655023353,1.19055578,840.81,840.2,0.89311426]
[1766655023553,1.19055578,840.8,840.2,0.89311426]
[1766655023857,1.19055425,840.79,840.2,0.89311426]
[1766655024157,1.19055425,840.78,840.2,0.89311426]
[1766655024456,1.19055425,840.77,840.2,0.89311426]
[1766655024655,1.19055425,840.76,840.2,0.89311426]
[1766655024852,0.20698639,840.86,840.2,0.89311426]
[1766655025057,1.19055425,840.85,840.2,0.89311426]
[1766655025356,1.19055425,840.84,840.2,0.89311426]
[1766655025552,1.19055425,840.83,840.2,0.89311426]
[1766655025756,1.19055425,840.82,840.2,0.89311426]
[1766655025958,1.19055425,840.81,840.2,0.89311426]
[1766655026152,1.19055425,840.8,840.2,0.89311426]
[1766655026353,1.19055425,840.79,840.2,0.89311426]
[1766655026557,1.19055425,840.78,840.2,0.89311426]
[1766655026754,1.19055425,840.77,840.2,0.89311426]
[1766655026957,1.19055425,840.76,840.2,0.89311426]
[1766655027155,0.20698639,840.86,840.2,0.89311426]
[1766655027355,1.19055374,840.85,840.2,0.89311426]
[1766655027558,1.19055374,840.84,840.2,0.89311426]
[1766655027760,1.19055374,840.83,840.2,0.89311426]
[1766655028060,1.19055374,840.82,840.21,0.89311426]
[1766655028260,1.19055374,840.81,840.21,0.89311426]
[1766655028456,1.19055374,840.8,840.21,0.89311426]
[1766655028660,1.19055374,840.79,840.21,0.89311426]
[1766655028860,1.19055374,840.78,840.21,0.89311426]
[1766655029058,1.19055374,840.77,840.21,0.89311426]
[1766655029258,1.19055374,840.76,840.21,0.89311426]
[1766655029458,0.20698639,840.86,840.21,0.89311426]
[1766655029663,1.19055374,840.85,840.21,0.89311426]
[1766655029864,1.19055374,840.84,840.21,0.89311426]
[1766655030064,1.19055374,840.83,840.21,0.89311426]
[1766655030264,1.19055374,840.82,840.21,0.89311426]
[1766655030462,1.19055374,840.81,840.21,0.89311426]
[1766655030661,1.19055374,840.8,840.21,0.89311426]
[1766655030863,1.19055374,840.79,840.21,0.89311426]
[1766655031064,1.19055374,840.78,840.21,0.89311426]
[1766655031262,1.19055374,840.77,840.21,0.89311426]
[1766655031462,1.19055374,840.76,840.21,0.89282182]
[1766655031758,0.20698639,840.86,840.21,0.89282182]
[1766655031960,1.19055296,840.85,840.21,0.89282182]
[1766655032158,1.19055296,840.84,840.21,0.89282182]
[1766655032359,1.19055296,840.83,840.21,0.89282182]
[1766655032561,1.19055296,840.82,840.21,0.89282182]
[1766655032760,1.19055296,840.81,840.21,0.89282182]
[1766655032963,1.19055296,840.8,840.21,0.89282182]
[1766655033161,1.19055296,840.79,840.21,0.89282182]
[1766655033366,1.19055296,840.78,840.21,0.89282182]
[1766655033665,1.19055296,840.77,840.21,0.89282182]
[1766655033865,1.19055296,840.76,840.21,0.89282182]
[1766655034161,0.20698639,840.86,840.23,0.89282182]
[1766655034365,1.19052465,840.85,840.23,0.89282182]
[1766655034565,1.19052465,840.84,840.23,0.89282182]
[1766655034767,1.19052465,840.83,840.23,0.89282182]
[1766655034960,1.19052465,840.82,840.23,0.89282182]
[1766655035165,1.19052465,840.81,840.23,0.89282182]
[1766655035363,1.19052465,840.8,840.23,0.89282182]
[1766655035666,1.19052465,840.79,840.23,0.89282182]
[1766655035863,1.19052465,840.78,840.23,0.89282182]
[1766655036068,0.20698639,840.86,840.23,0.89282182]
[1766655036268,1.19052491,840.85,840.23,0.89282182]
[1766655036568,1.19052491,840.84,840.23,0.89282182]
[1766655036768,1.19052491,840.83,840.23,0.89282182]
[1766655036965,1.19052491,840.82,840.23,0.89282182]
[1766655037163,1.19052491,840.81,840.23,0.89282182]
[1766655037368,1.19052491,840.8,840.23,0.89282182]
[1766655037667,1.19052491,840.79,840.23,0.89282182]
[1766655037866,1.19052491,840.78,840.23,0.89282182]
[1766655038068,0.20698639,840.86,840.23,0.89282182]
[1766655038268,1.19052567,840.85,840.23,0.89282182]
[1766655038467,0.20698639,840.86,840.23,0.89282182]
[1766655038468,1.19052567,840.84,840.23,0.89282182]
[1766655038665,1.19052567,840.83,840.23,0.89282182]
[1766655038865,1.19052567,840.82,840.23,0.89282182]
[1766655039065,1.19052567,840.82,840.08,1.18987593]
[1766655039066,0.20698639,840.86,840.27,0.89282182]
[1766655039372,1.19047467,840.85,840.27,0.89282182]
[1766655039669,1.19047467,840.84,840.27,0.89282182]
[1766655039869,1.19047467,840.83,840.27,0.89282182]
[1766655040069,0.20698639,840.86,840.27,0.89282182]
[1766655040265,1.19047467,840.85,840.26,0.89282182]
[1766655040470,1.19047467,840.84,840.26,0.89282182]
[1766655040665,0.20698639,840.86,840.26,0.89282182]
[1766655040966,1.19047467,840.85,840.26,0.89282182]
[1766655041170,1.19047467,840.84,840.26,0.89282182]
[1766655041466,0.20698639,840.86,840.26,0.89282182]
[1766655041770,1.19047467,840.85,840.26,0.89282182]
[1766655041971,1.19047467,840.84,840.26,0.89282182]
[1766655042170,0.20698639,840.86,840.26,0.89282182]
[1766655042371,1.19047467,840.85,840.26,0.89282182]
[1766655042568,1.19047467,840.84,840.26,0.89282182]
[1766655042772,0.20698639,840.86,840.26,0.89282182]
[1766655043072,1.19047467,840.85,840.26,0.89282182]
[1766655043272,1.19047467,840.84,840.26,0.89282182]
[1766655043470,0.20698639,840.86,840.26,0.89282182]
[1766655043671,1.19047467,840.85,840.26,0.89282182]
[1766655043867,1.19047467,840.84,840.26,0.89282182]
[1766655044168,0.20698639,840.86,840.25,0.89282182]
[1766655044469,1.19047467,840.85,840.25,0.89282182]
[1766655044772,0.20698639,840.86,840.25,0.89282182]
[1766655044975,1.19047467,840.85,840.25,0.89282182]
[1766655045172,0.20698639,840.86,840.25,0.89282182]
[1766655045371,1.19047467,840.85,840.25,0.89282182]
[1766655045571,0.20698639,840.86,840.25,0.89282182]
[1766655045775,1.19047467,840.85,840.25,0.89282182]
[1766655046079,0.20698639,840.86,840.25,0.89282182]
[1766655046276,1.19047544,840.85,840.25,0.89282182]
[1766655046473,0.20698639,840.86,840.25,0.89282182]
[1766655046675,1.19047544,840.85,840.25,0.89282182]
[1766655046872,0.20698639,840.86,840.25,0.89282182]
[1766655047073,1.19047544,840.85,840.25,0.89282182]
[1766655047376,0.20698639,840.86,840.25,0.89282182]
[1766655047575,1.19047544,840.85,840.25,0.89282182]
[1766655047778,0.20698639,840.86,840.25,0.89282182]
[1766655047977,1.19047544,840.85,840.25,0.89282182]
[1766655048178,0.20698639,840.86,840.25,0.89282182]
[1766655048379,1.19047544,840.85,840.25,0.89282182]
[1766655048675,0.20698639,840.86,840.25,0.89282182]
[1766655048874,1.19047544,840.85,840.25,0.89282182]
[1766655049079,0.20698639,840.86,840.25,0.89282182]
[1766655049275,1.19047544,840.85,840.25,0.89282182]
[1766655049474,0.20698639,840.86,840.25,0.89282182]
[1766655049679,1.1904748,840.85,840.25,0.89282182]
[1766655049879,0.20698639,840.86,840.25,0.89282182]
[1766655050180,1.1904748,840.85,840.25,0.89282182]
[1766655050378,0.20698639,840.86,840.25,0.89282182]
[1766655050578,1.1904748,840.85,840.25,0.89282182]
[1766655050778,0.20698639,840.86,840.25,0.89282182]
[1766655051078,1.1904748,840.85,840.25,0.89282182]
[1766655051282,0.20698639,840.86,840.25,0.89282182]
[1766655051480,1.1904748,840.85,840.25,0.89282182]
[1766655051681,0.20698639,840.86,840.25,0.89282182]
[1766655051877,1.1904748,840.85,840.25,0.89282182]
[1766655052079,0.20698639,840.86,840.25,0.89282182]
[1766655052278,1.1904748,840.85,840.25,0.89282182]
[1766655052478,0.20698639,840.86,840.25,0.89282182]
[1766655052677,1.1904748,840.85,840.25,0.89282182]
[1766655052977,0.20698639,840.86,840.25,0.89282182]
[1766655053180,1.1904748,840.85,840.25,0.89282182]
[1766655053480,0.20698639,840.86,840.25,0.89282182]
[1766655053676,1.1904748,840.85,840.25,0.89282182]
[1766655053880,0.20698639,840.86,840.25,0.89282182]
[1766655061085,0.20698639,840.86,840.24,0.89282182]
[1766655064090,1.19047575,840.85,840.24,0.89282182]
[1766655064285,0.20698639,840.86,840.25,0.89282182]
[1766655064590,1.19047575,840.85,840.25,0.89282182]
[1766655064788,0.20698639,840.86,840.25,0.89282182]
[1766655064985,1.19047575,840.85,840.25,0.89282182]
[1766655065189,0.20698639,840.86,840.25,0.89282182]
[1766655065389,1.19047575,840.85,840.25,0.89282182]
[1766655065587,0.20698639,840.86,840.25,0.89282182]
[1766655065887,1.19047575,840.85,840.25,0.89282182]
[1766655066092,0.20698639,840.86,840.25,0.89282182]
[1766655066290,1.19047575,840.85,840.25,0.89282182]
[1766655066491,0.20698639,840.86,840.25,0.89282182]
[1766655066685,1.19047575,840.85,840.25,0.89282182]
[1766655066986,0.20698639,840.86,840.25,0.89282182]
[1766655067187,1.19047575,840.85,840.25,0.89282182]
[1766655067390,0.20698639,840.86,840.25,0.89282182]
[1766655067588,1.19047575,840.85,840.25,0.89282182]
[1766655067792,0.20698639,840.86,840.25,0.89282182]
[1766655067993,1.19047575,840.85,840.25,0.89282182]
[1766655068193,0.20698639,840.86,840.25,0.89282182]
[1766655068394,1.19047575,840.85,840.25,0.89282182]
[1766655068595,0.20698639,840.86,840.25,0.89282182]
[1766655068798,1.19047575,840.85,840.25,0.89282182]
[1766655068998,0.20698639,840.86,840.25,0.89282182]
[1766655069197,1.19047575,840.85,840.25,0.89282182]
[1766655069397,0.20698639,840.86,840.25,0.89282182]
[1766655069597,1.19047575,840.85,840.25,0.89282182]
[1766655069799,0.20698639,840.86,840.25,0.89282182]
[1766655070093,1.19047575,840.85,840.25,0.89282182]
[1766655070293,0.20698639,840.86,840.25,0.89282182]
[1766655070493,1.19047575,840.85,840.25,0.89282182]
[1766655070693,0.20698639,840.86,840.25,0.89282182]
[1766655070895,1.19047575,840.85,840.25,0.89282182]
[1766655071094,0.20698639,840.86,840.25,0.89282182]
[1766655071299,1.19047575,840.85,840.25,0.89282182]
[1766655071495,0.20698639,840.86,840.25,0.89282182]
[1766655071796,1.19047575,840.85,840.25,0.89282182]
[1766655071998,0.20698639,840.86,840.25,0.89282182]
[1766655072197,1.19047575,840.85,840.25,0.89282182]
[1766655072397,0.20698639,840.86,840.25,0.89282182]
[1766655072703,1.19047575,840.85,840.25,0.89282182]
[1766655072898,0.20698639,840.86,840.25,0.89282182]
[1766655073099,1.19047575,840.85,840.25,0.89282182]
[1766655073303,0.20698639,840.86,840.25,0.89282182]
[1766655073500,1.19047575,840.85,840.25,0.89282182]
[1766655073705,0.20698639,840.86,840.25,0.89282182]
[1766655073901,1.19047575,840.85,840.25,0.89282182]
[1766655074204,0.20698639,840.86,840.26,0.89282182]
[1766655074406,1.19047575,840.85,840.26,0.89282182]
[1766655074602,0.20698639,840.86,840.26,0.89282182]
[1766655074806,1.19047575,840.85,840.26,0.89282182]
[1766655075106,1.19047575,840.84,840.26,0.89282182]
[1766655075307,0.20698639,840.86,840.26,0.89282182]
[1766655075502,1.19047575,840.85,840.26,0.89282182]
[1766655075705,1.19047575,840.84,840.26,0.89282182]
[1766655075901,0.20698639,840.86,840.26,0.89282182]
[1766655076106,1.19047575,840.85,840.26,0.89282182]
[1766655076305,1.19047575,840.84,840.26,0.89282182]
[1766655076506,0.20698639,840.86,840.26,0.89282182]
[1766655076705,1.19047575,840.85,840.26,0.89282182]
[1766655076902,1.19047575,840.84,840.26,0.89282182]
[1766655077102,0.20698639,840.86,840.26,0.89282182]
[1766655077306,1.19047575,840.85,840.26,0.89282182]
[1766655077502,1.19047575,840.84,840.26,0.89282182]
[1766655077706,0.20698639,840.86,840.26,0.89282182]
[1766655077907,1.19047575,840.85,840.26,0.89282182]
[1766655078104,1.19047575,840.84,840.26,0.89282182]
[1766655078307,0.20698639,840.86,840.27,0.89282182]
[1766655078604,1.19047575,840.85,840.27,0.89282182]
[1766655078803,1.19047575,840.84,840.27,0.89282182]
[1766655079005,0.20698639,840.86,840.27,0.89282182]
[1766655079208,1.19047575,840.85,840.27,0.89282182]
[1766655079408,1.19047575,840.84,840.27,0.89282182]
[1766655079709,0.20698639,840.86,840.27,0.89282182]
[1766655079907,1.19047575,840.85,840.27,0.89282182]
[1766655080206,1.19047575,840.84,840.27,0.89282182]
[1766655080403,1.19047575,840.83,840.27,0.89282182]
[1766655080608,0.20698639,840.86,840.27,0.89282182]
[1766655080808,1.19047575,840.85,840.27,0.89282182]
[1766655081010,1.19047575,840.84,840.27,0.89282182]
[1766655081206,1.19047575,840.83,840.27,0.89282182]
[1766655081406,0.20698639,840.86,840.27,0.89282182]
[1766655081610,1.19047575,840.85,840.27,0.89282182]
[1766655081810,1.19047575,840.84,840.27,0.89282182]
[1766655082107,1.19047575,840.83,840.27,0.89282182]
[1766655082310,0.20698639,840.86,840.27,0.89282182]
[1766655082506,1.19047575,840.85,840.27,0.89282182]
[1766655082705,1.19047575,840.84,840.27,0.89282182]
[1766655083010,1.19047575,840.83,840.27,0.89282182]
[1766655083208,1.19047575,840.82,840.27,0.89282182]
[1766655083405,0.20698639,840.86,840.28,0.89282182]
[1766655083706,1.19047575,840.85,840.28,0.89282182]
[1766655083906,1.19047575,840.84,840.28,0.89282182]
[1766655084107,1.19047575,840.83,840.28,0.89282182]
[1766655084312,1.19047575,840.82,840.28,0.89282182]
[1766655084610,0.20698639,840.86,840.28,0.89282182]
[1766655084810,1.19047575,840.85,840.28,0.89282182]
[1766655085008,1.19047575,840.84,840.28,0.89282182]
[1766655085210,1.19047575,840.83,840.28,0.89282182]
[1766655085510,1.19047575,840.82,840.28,0.89282182]
[1766655085711,0.20698639,840.86,840.28,0.89282182]
[1766655086011,1.19047575,840.85,840.28,0.89282182]
[1766655086210,1.19047575,840.84,840.28,0.89282182]
[1766655086410,1.19047575,840.83,840.28,0.89282182]
[1766655086612,1.19047575,840.82,840.28,0.89282182]
[1766655086814,0.20698639,840.86,840.28,0.89282182]
[1766655087013,1.19047575,840.85,840.28,0.89282182]
[1766655087213,1.19047575,840.84,840.28,0.89282182]
[1766655087410,1.19047575,840.83,840.28,0.89282182]
[1766655087712,1.19047575,840.82,840.28,0.89282182]
[1766655087913,0.20698639,840.86,840.28,0.89282182]
[1766655088113,1.19047575,840.85,840.28,0.89282182]
[1766655088310,1.19047575,840.84,840.28,0.89282182]
[1766655088510,1.19047575,840.83,840.28,0.89282182]
[1766655088713,1.19047575,840.82,840.28,0.89282182]
[1766655088909,0.20698639,840.86,840.28,0.89282182]
[1766655089113,1.19047575,840.85,840.28,0.89282182]
[1766655089314,1.19047575,840.84,840.28,0.89282182]
[1766655089514,1.19047575,840.83,840.28,0.89282182]
[1766655089712,1.19047575,840.82,840.26,0.89282182]
[1766655089915,1.19047575,840.81,840.26,0.89282182]
[1766655090111,0.20698639,840.86,840.26,0.89282182]
[1766655090414,1.19050304,840.85,840.26,0.89282182]
[1766655090615,1.19050304,840.84,840.22,0.89282182]
[1766655090915,1.19050304,840.83,840.15,0.89282182]
[1766655091116,1.19050304,840.82,840.15,0.89282182]
[1766655091317,1.19050304,840.81,840.13,0.89282182]
[1766655091518,1.19050304,840.8,840.13,0.89282182]
[1766655091711,1.19050304,840.79,840.13,0.89282182]
[1766655091917,1.19050304,840.78,840.13,0.89282182]
[1766655092115,1.19050304,840.77,840.13,0.89282182]
[1766655092318,1.19050304,840.76,840.12,0.89282182]
[1766655092516,1.19050304,840.75,840.12,0.89282182]
[1766655092718,1.09891646,840.86,840.12,0.89282182]
[1766655092919,1.19061113,840.85,840.12,0.89282182]
[1766655093118,1.19061113,840.84,840.12,0.89282182]
[1766655093315,1.19061113,840.83,840.12,0.89282182]
[1766655093519,1.19061113,840.82,840.12,0.89282182]
[1766655093719,1.19061113,840.81,840.12,0.89282182]
[1766655093918,1.19061113,840.8,840.12,0.89282182]
[1766655094120,1.19061113,840.79,840.12,0.89282182]
[1766655094420,1.19061113,840.78,840.11,0.89282182]
[1766655094621,1.19061113,840.77,840.1,0.89282182]
[1766655094820,1.19061113,840.76,840.1,0.89282182]
[1766655095016,1.19061113,840.75,840.1,0.89282182]
[1766655095215,1.09891646,840.86,840.1,0.89282182]
[1766655095414,1.09891646,840.86,839.95,1.18987593]
[1766655095415,1.19063304,840.85,840.09,0.89282182]
[1766655095718,1.19063304,840.84,840.09,0.89282182]
[1766655095919,1.19063304,840.83,840.09,0.89282182]
[1766655096119,1.19063304,840.82,840.09,0.89282182]
[1766655096419,1.19063304,840.81,840.09,0.89282182]
[1766655096720,1.19063304,840.8,840.09,0.89282182]
[1766655096921,1.19063304,840.79,840.09,0.89282182]
[1766655097121,1.19063304,840.78,840.09,0.89282182]
[1766655097315,0.20698639,840.86,840.09,0.89282182]
[1766655097316,1.19063304,840.77,840.09,0.89282182]
[1766655097517,1.19063304,840.76,840.09,0.89282182]
[1766655097717,0.20698639,840.86,840.09,0.89282182]
[1766655097919,1.19063304,840.85,840.09,0.89282182]
[1766655098117,1.19063304,840.84,840.09,0.89282182]
[1766655098317,1.19063304,840.83,840.08,0.89282182]
[1766655098517,1.19063304,840.82,840.08,0.89282182]
[1766655098716,1.19063304,840.81,840.08,0.89282182]
[1766655098920,1.19063304,840.8,840.08,0.89282182]
[1766655099120,1.19063304,840.79,840.08,0.89282182]
[1766655099319,1.19063304,840.78,840.08,0.89282182]
[1766655099617,1.19063304,840.77,840.08,0.89282182]
[1766655099821,0.20698639,840.86,840.08,0.89282182]
[1766655100121,1.19063304,840.85,840.08,0.89282182]
[1766655100318,1.19063304,840.84,840.08,0.89282182]
[1766655100518,1.19063304,840.83,840.08,0.89282182]
[1766655100719,1.19063304,840.82,840.08,0.89282182]
[1766655100917,1.19063304,840.81,840.08,0.89282182]
[1766655101218,0.20698639,840.86,840.08,0.89282182]
[1766655101219,1.19063304,840.8,840.08,0.89282182]
[1766655101418,1.19063304,840.79,840.08,0.89282182]
[1766655101618,1.19063304,840.78,840.08,0.89282182]
[1766655101818,1.19063304,840.77,840.08,0.89282182]
[1766655102018,0.20698639,840.86,840.08,0.89282182]
[1766655102218,1.19063304,840.85,840.08,0.89282182]
[1766655102417,1.19063304,840.84,840.07,0.89282182]
[1766655102718,1.19063304,840.83,840.07,0.89282182]
[1766655102917,1.19063304,840.82,840.07,0.89282182]
[1766655103220,1.19063304,840.81,840.07,0.89282182]
[1766655103418,1.19063304,840.8,840.07,0.89282182]
[1766655103617,1.19063304,840.79,840.07,0.89282182]
[1766655103816,1.19063304,840.78,840.08,0.89282182]
[1766655104015,0.20698639,840.86,840.08,0.89282182]
[1766655104218,1.19063304,840.85,840.08,0.89282182]
[1766655104419,1.19063304,840.84,840.07,0.89282182]
[1766655104617,1.19063304,840.83,840.07,0.89282182]
[1766655104815,1.19063304,840.82,840.07,0.89282182]
[1766655105016,1.19063304,840.81,840.07,0.89282182]
[1766655105221,1.19063304,840.8,840.07,0.89282182]
[1766655105421,1.19063304,840.79,840.07,0.89282182]
[1766655105616,1.19063304,840.78,840.07,0.89282182]
[1766655105819,0.20698639,840.86,840.07,0.89282182]
[1766655106017,1.19063304,840.85,840.07,0.89282182]
[1766655106216,1.19063304,840.84,840.07,0.89282182]
[1766655106421,1.19063304,840.83,840.07,0.89282182]
[1766655106623,1.19063304,840.82,840.07,0.89282182]
[1766655106819,1.19063304,840.81,840.07,0.89282182]
[1766655107023,1.19063304,840.8,840.07,0.89282182]
[1766655107223,1.19063304,840.79,840.07,0.89282182]
[1766655107419,1.19063304,840.78,840.07,0.89282182]
[1766655107620,0.20698639,840.86,840.07,0.89282182]
[1766655107821,2.08256439,840.85,840.03,0.89282182]
[1766655108026,1.19063432,840.84,840.03,0.89282182]
[1766655108326,0.89193007,840.85,840.02,0.89282182]
[1766655108522,1.19069623,840.84,840.02,0.89282182]
[1766655108821,0.89193007,840.85,840.02,0.89282182]
[1766655108822,1.19069623,840.83,840.02,0.89282182]
[1766655109020,1.19069623,840.82,840.01,0.89282182]
[1766655109221,0.89193007,840.8,839.97,0.89282182]
[1766655109425,0.89193007,840.76,839.92,0.89282182]
[1766655109627,1.19069623,840.75,839.92,0.89282182]
[1766655110420,1.19069623,840.75,839.91,0.89282182]
[1766655110720,1.19069623,840.74,839.91,0.89282182]
[1766655110921,1.19069623,840.73,839.91,0.89282182]
[1766655111122,1.19069623,840.72,839.91,0.89282182]
[1766655111324,1.19069623,840.71,839.9,0.89282182]
[1766655111621,1.19069623,840.7,839.9,0.89282182]
[1766655111821,1.19069623,840.69,839.9,0.89282182]
[1766655112020,1.19069623,840.68,839.9,0.89282182]
[1766655112326,1.19069623,840.67,839.89,0.89282182]
[1766655112525,0.89193007,840.78,839.89,0.89282182]
[1766655112826,1.1908371,840.77,839.89,0.89282182]
[1766655113022,1.1908371,840.76,839.89,0.89282182]
[1766655113322,1.1908371,840.75,839.89,0.89282182]
[1766655113522,1.1908371,840.74,839.89,0.89282182]
[1766655113825,1.1908371,840.73,839.89,0.89282182]
[1766655114025,1.1908371,840.72,839.89,0.89282182]
[1766655114225,1.1908371,840.71,839.89,0.89282182]
[1766655114426,1.1908371,840.7,839.88,0.89282182]
[1766655114628,1.1908371,840.69,839.88,0.89282182]
[1766655114823,1.1908371,840.68,839.88,0.89282182]
[1766655115027,0.89193007,840.79,839.88,0.89282182]
[1766655115327,1.19083685,840.78,839.88,0.89282182]
[1766655115524,1.19083685,840.77,839.88,0.89282182]
[1766655115823,1.19083685,840.76,839.88,0.89282182]
[1766655116027,1.19083685,840.75,839.88,0.89282182]
[1766655116327,1.19083685,840.74,839.88,0.89282182]
[1766655116527,1.19083685,840.73,839.88,0.89282182]
[1766655116728,1.19083685,840.72,839.88,0.89282182]
[1766655117027,1.19083685,840.71,839.88,0.89282182]
[1766655117328,1.19083685,840.7,839.87,0.89282182]
[1766655117522,1.19083685,840.69,839.87,0.89282182]
[1766655117724,0.89193007,840.8,839.87,0.89282182]
[1766655118028,1.19083685,840.79,839.87,0.89282182]